fUST/lending_fUST_20250303
["ID","MTS","AMOUNT","RATE_DAILY","PERIOD"]
[355177953,1740952234155,-351.0,0.00022204,3]
[355177954,1740952234165,-351.0,0.00022204,3]
[355177955,1740952234175,-315.0,0.00022204,3]
[355177956,1740952234185,-351.0,0.00022204,3]
[355177957,1740952234195,-315.0,0.00022204,3]
[355177958,1740952234205,-351.0,0.00022204,3]
[355177959,1740952234215,-315.0,0.00022204,3]
[355177960,1740952234226,-351.0,0.00022204,3]
[355177961,1740952234236,-315.0,0.00022204,3]
[355177962,1740952234246,-315.0,0.00022204,3]
[355177963,1740952234256,-351.0,0.00022204,3]
[355177964,1740952234266,-315.0,0.00022204,3]
[355177965,1740952234276,-351.0,0.00022204,3]
[355177966,1740952234286,-315.0,0.00022204,3]
[355177967,1740952234295,-351.0,0.00022204,3]
[355177968,1740952234305,-315.0,0.00022204,3]
[355177969,1740952234315,-351.0,0.00022204,3]
[355177971,1740952234325,-315.0,0.00022204,3]
[355177972,1740952234335,-351.0,0.00022204,3]
[355177973,1740952234345,-315.0,0.00022204,3]
[355177974,1740952234355,-315.0,0.00022204,3]
[355177975,1740952234366,-351.0,0.00022204,3]
[355177976,1740952234537,-351.0,0.00022204,3]
[355177977,1740952234549,-315.0,0.00022204,3]
[355177978,1740952234559,-351.0,0.00022204,3]
[355177979,1740952234569,-315.0,0.00022204,3]
[355177980,1740952234579,-351.0,0.00022204,3]
[355177981,1740952234589,-315.0,0.00022204,3]
[355177982,1740952234599,-500.0,0.00022326,2]
[355177983,1740952234609,-501.42734085,0.00022329,2]
[355177984,1740952234619,-417.60366211,0.00022331,2]
[355177985,1740952234628,-500.0,0.00022422,2]
[355177986,1740952234638,-500.0,0.00022422,2]
[355177987,1740952234648,-500.0,0.00022422,2]
[355177988,1740952234657,-500.0,0.00022422,2]
[355177989,1740952234667,-500.0,0.00022422,2]
[355177990,1740952234677,-500.0,0.00022422,2]
[355177991,1740952234686,-500.0,0.00022422,2]
[355177992,1740952234695,-500.0,0.00022422,2]
[355177993,1740952234705,-500.0,0.00022422,2]
[355177994,1740952234715,-500.0,0.00022422,2]
[355177995,1740952234724,-500.0,0.00022422,2]
[355177996,1740952234735,-500.0,0.00022422,2]
[355177997,1740952234745,-500.0,0.00022422,2]
[355177998,1740952234754,-500.0,0.00022422,2]
[355177999,1740952234764,-500.0,0.00022429,2]
[355178000,1740952234774,-500.0,0.00022442,2]
[355178001,1740952234783,-500.0,0.00022442,2]
[355178002,1740952234793,-500.0,0.00022442,2]
[355178003,1740952234802,-509.31008011,0.00022442,2]
[355178004,1740952234812,-500.0,0.00022442,2]
[355178005,1740952234822,-500.0,0.00022442,2]
[355178006,1740952234832,-500.0,0.00022442,2]
[355178007,1740952234845,-500.0,0.00022442,2]
[355178008,1740952234855,-250.0,0.00022465,2]
[355178009,1740952234864,-500.0,0.00022465,2]
[355178010,1740952234874,-500.0,0.00022465,2]
[355178011,1740952234884,-500.0,0.00022465,2]
[355178012,1740952234893,-540.71,0.00022465,2]
[355178013,1740952234902,-500.0,0.00022465,2]
[355178014,1740952234915,-198.43670256,0.00022465,2]
[355178015,1740952234925,-500.0,0.00022465,2]
[355178016,1740952234934,-254.95374948,0.00022465,2]
[355178017,1740952234944,-500.0,0.00022465,2]
[355178018,1740952234953,-500.0,0.00022465,2]
[355178019,1740952234963,-500.0,0.00022465,2]
[355178020,1740952234973,-500.0,0.00022465,2]
[355178021,1740952234984,-1000.0,0.00022465,2]
[355178022,1740952234995,-167.89673259,0.00022465,2]
[355178023,1740952235005,-434.57933136,0.00022465,2]
[355178024,1740952235014,-500.0,0.00022465,2]
[355178025,1740952235025,-500.0,0.00022465,2]
[355178026,1740952235034,-237.98,0.00022465,2]
[355178027,1740952235044,-500.0,0.00022465,2]
[355178028,1740952235053,-500.0,0.00022465,2]
[355178029,1740952235063,-500.0,0.00022465,2]
[355178030,1740952235074,-414.53603163,0.00022465,2]
[355178031,1740952235084,-214.52,0.00022465,2]
[355178032,1740952235094,-512.96,0.00022465,2]
[355178033,1740952235104,-500.0,0.00022465,2]
[355178034,1740952235114,-500.0,0.00022465,2]
[355178035,1740952235124,-1179.73056173,0.00022492,2]
[355178036,1740952235134,-223.40453842,0.00022639,2]
[355178037,1740952235144,-250.0,0.00022739,2]
[355178038,1740952235154,-500.0,0.00022739,2]
[355178039,1740952235164,-500.0,0.00022739,2]
[355178040,1740952235174,-500.0,0.00022739,2]
[355178041,1740952235183,-500.0,0.00022739,2]
[355178042,1740952235193,-500.0,0.00022739,2]
[355178043,1740952235202,-157.5499315,0.00022739,2]
[355178044,1740952235212,-500.0,0.00022739,2]
[355178045,1740952235221,-500.0,0.00022739,2]
[355178046,1740952235232,-248.87,0.00022739,2]
[355178047,1740952235242,-1000.0,0.00022739,2]
[355178048,1740952235252,-500.0,0.00022739,2]
[355178049,1740952235262,-561.42,0.00022739,2]
[355178050,1740952235271,-500.0,0.00022739,2]
[355178051,1740952235280,-500.0,0.00022739,2]
[355178052,1740952235290,-602.48512166,0.00022739,2]
[355178053,1740952235299,-512.96,0.00022739,2]
[355178054,1740952235309,-500.0,0.00022739,2]
[355178055,1740952235318,-500.0,0.00022739,2]
[355178056,1740952235328,-596.49696817,0.00022762,2]
[355178057,1740952235337,-151.0,0.0002298,7]
[355178058,1740952235347,-160.0,0.00023,3]
[355178059,1740952235356,-250.0,0.00023013,2]
[355178060,1740952235365,-537.06573446,0.00023013,2]
[355178061,1740952235375,-500.0,0.00023013,2]
[355178062,1740952235384,-500.0,0.00023013,2]
[355178063,1740952235394,-450.71883055,0.00023013,2]
[355178064,1740952235404,-500.0,0.00023013,2]
[355178065,1740952235413,-537.04552636,0.00023013,2]
[355178066,1740952235423,-500.0,0.00023013,2]
[355178067,1740952235432,-1000.0,0.00023013,2]
[355178068,1740952235441,-151.0,0.00023013,7]
[355178069,1740952235450,-151.0,0.00023013,7]
[355178070,1740952235460,-520.96,0.00023013,2]
[355178071,1740952235469,-500.0,0.00023013,2]
[355178072,1740952235479,-500.0,0.00023013,2]
[355178073,1740952235489,-512.96,0.00023013,2]
[355178074,1740952235498,-500.0,0.00023013,2]
[355178075,1740952235508,-500.0,0.00023013,2]
[355178076,1740952235517,-223.40453839,0.00023204,2]
[355178077,1740952235527,-19629.85965445,0.00023269,2]
[355178078,1740952235537,-160.0,0.00023269,2]
[355178079,1740952235547,-160.0,0.00023269,2]
[355178080,1740952235556,-160.0,0.00023269,2]
[355178081,1740952235566,-250.0,0.00023287,2]
[355178082,1740952235575,-500.0,0.00023287,2]
[355178083,1740952235585,-500.0,0.00023287,2]
[355178084,1740952235596,-500.0,0.00023287,2]
[355178085,1740952235605,-500.0,0.00023287,2]
[355178086,1740952235615,-1000.0,0.00023287,2]
[355178087,1740952235625,-500.0,0.00023287,2]
[355178088,1740952235635,-500.0,0.00023287,2]
[355178089,1740952235644,-512.96,0.00023287,2]
[355178090,1740952235654,-500.0,0.00023287,2]
[355178091,1740952235664,-500.0,0.00023287,2]
[355178092,1740952235674,-250.0,0.00023561,2]
[355178093,1740952235684,-500.0,0.00023561,2]
[355178094,1740952235693,-500.0,0.00023561,2]
[355178095,1740952235703,-500.0,0.00023561,2]
[355178096,1740952235712,-500.0,0.00023561,2]
[355178097,1740952235722,-1000.0,0.00023561,2]
[355178098,1740952235731,-500.0,0.00023561,2]
[355178099,1740952235740,-500.0,0.00023561,2]
[355178100,1740952235750,-512.96,0.00023561,2]
[355178101,1740952235759,-368.1,0.00023561,2]
[355178102,1740952235768,-500.0,0.00023561,2]
[355178103,1740952235778,-151.0,0.000236,6]
[355178104,1740952235787,-223.40453839,0.0002377,2]
[355178105,1740952235797,-250.0,0.00023835,2]
[355178106,1740952235808,-500.0,0.00023835,2]
[355178107,1740952235817,-500.0,0.00023835,2]
[355178108,1740952235829,-500.0,0.00023835,2]
[355178109,1740952235840,-500.0,0.00023835,2]
[355178110,1740952235849,-1003.96456385,0.00023835,2]
[355178111,1740952235858,-500.0,0.00023835,2]
[355178112,1740952235868,-204.02955412,0.00023835,2]
[355178113,1740952235878,-512.96,0.00023835,2]
[355178114,1740952235888,-500.0,0.00023835,2]
[355178115,1740952235897,-649.25279098,0.000239,2]
[355178116,1740952235906,-303.1140184,0.00024109,2]
[355178117,1740952235916,-500.0,0.00024109,2]
[355178118,1740952235926,-500.0,0.00024109,2]
[355178119,1740952235935,-500.0,0.00024109,2]
[355178120,1740952235945,-500.0,0.00024109,2]
[355178121,1740952235954,-500.0,0.00024109,2]
[355178122,1740952235964,-512.96,0.00024109,2]
[355178123,1740952235973,-500.0,0.00024109,2]
[355178124,1740952235983,-223.40453839,0.00024335,2]
[355178125,1740952235995,-237.45,0.00024383,2]
[355178126,1740952236008,-271.38733408,0.00024383,2]
[355178129,1740952238322,-292.97,0.00022204,3]
[355178131,1740952238509,-42.03,0.00022204,3]
[355178133,1740952238524,-228.61266592,0.00024383,2]
[355178135,1740952238539,-500.0,0.00024383,2]
[355178136,1740952238554,-500.0,0.00024383,2]
[355178137,1740952238568,-151.2245929,0.00024383,2]
[355178138,1740952238580,-512.96,0.00024383,2]
[355178139,1740952238593,-333.39509201,0.00024383,2]
[355178140,1740952238604,-587.0,0.000246,11]
[355178141,1740952238617,-500.0,0.00024657,2]
[355178142,1740952238630,-500.0,0.00024657,2]
[355178143,1740952238643,-500.0,0.00024657,2]
[355178144,1740952238655,-512.96,0.00024657,2]
[355178145,1740952238667,-52.25597277,0.00024658,7]
[355178158,1740952240364,-348.16334401,0.00024658,7]
[355178159,1740952240374,-500.0,0.00024658,2]
[355178160,1740952240385,-500.0,0.00024658,2]
[355178161,1740952240396,-500.0,0.00024658,2]
[355178162,1740952240406,-500.0,0.00024658,2]
[355178163,1740952240417,-500.0,0.00024658,2]
[355178164,1740952240427,-500.0,0.00024658,2]
[355178165,1740952240438,-500.0,0.00024658,2]
[355178166,1740952240449,-500.0,0.00024658,2]
[355178167,1740952240462,-500.0,0.00024658,2]
[355178168,1740952240475,-500.0,0.00024658,2]
[355178169,1740952240488,-629.97936604,0.00024658,2]
[355178170,1740952240500,-500.0,0.00024658,2]
[355178171,1740952240512,-500.0,0.00024658,2]
[355178172,1740952240522,-500.0,0.00024658,2]
[355178173,1740952240533,-500.0,0.00024658,2]
[355178174,1740952240545,-500.0,0.00024658,2]
[355178175,1740952240556,-500.0,0.00024658,2]
[355178176,1740952240567,-500.0,0.00024658,2]
[355178177,1740952240578,-500.0,0.00024658,2]
[355178178,1740952240590,-500.0,0.00024658,2]
[355178179,1740952240603,-151.0,0.00024658,7]
[355178180,1740952240616,-1040.54,0.000247,2]
[355178181,1740952240628,-1500.0,0.000248,2]
[355178182,1740952240640,-537.067,0.00024829,8]
[355178183,1740952240652,-223.40453839,0.000249,2]
[355178184,1740952240663,-151.0,0.000249,7]
[355178185,1740952240673,-151.0,0.000249,7]
[355178186,1740952240684,-3460.34575156,0.000249,2]
[355178210,1740952245410,-5031.13326325,0.000249,2]
[355178212,1740952245422,-264.81113533,0.00024931,2]
[355178315,1740953432701,-166.66666668,0.00018921,2]
[355178316,1740953432712,-500.0,0.00019021,2]
[355178317,1740953432722,-500.0,0.00019021,2]
[355178318,1740953432732,-597.90047472,0.00019021,2]
[355178319,1740953432741,-166.66666666,0.00019995,2]
[355178320,1740953432751,-248.63689589,0.0002,3]
[355178321,1740953432761,-300.0,0.00020629,2]
[355178322,1740953432770,-500.0,0.0002063,2]
[355178323,1740953432779,-500.0,0.0002063,2]
[355178324,1740953432789,-500.0,0.0002063,2]
[355178325,1740953432799,-273.13310302,0.0002063,2]
[355178326,1740953432809,-500.0,0.0002063,2]
[355178328,1740953432820,-500.0,0.0002063,2]
[355178330,1740953432830,-200.0,0.0002063,2]
[355178332,1740953432840,-474.67895817,0.0002063,2]
[355178334,1740953432850,-24900.0,0.00020631,2]
[355178335,1740953432860,-172.17896009,0.00021069,2]
[355178336,1740953432870,-166.66666666,0.00021069,2]
[355178337,1740953432879,-216.41759699,0.00021169,2]
[355178338,1740953432889,-346.62481243,0.00021573,2]
[355178339,1740953432899,-1000.0,0.00021635,2]
[355178340,1740953432909,-193.97631939,0.00021649,2]
[355178341,1740953432918,-233.75740346,0.00021649,2]
[355178342,1740953432929,-222000.0,0.0002165,2]
[355178343,1740953432939,-500.0,0.00021673,2]
[355178344,1740953432948,-500.0,0.00021673,2]
[355178345,1740953432958,-500.0,0.00021673,2]
[355178346,1740953432967,-500.0,0.00021673,2]
[355178347,1740953432977,-500.0,0.00021673,2]
[355178348,1740953432987,-500.0,0.00021917,14]
[355178349,1740953432997,-500.0,0.00021917,2]
[355178350,1740953433007,-500.0,0.00021917,2]
[355178351,1740953433017,-500.0,0.00021917,2]
[355178352,1740953433027,-500.0,0.00021917,2]
[355178353,1740953433037,-516.54,0.00021917,2]
[355178354,1740953433047,-500.0,0.00021917,2]
[355178355,1740953433057,-500.0,0.00021917,2]
[355178356,1740953433067,-500.0,0.00021917,2]
[355178357,1740953433077,-598.51,0.00021917,2]
[355178358,1740953433087,-190.64151953,0.00021917,2]
[355178359,1740953433095,-541.06,0.00021917,2]
[355178360,1740953433102,-500.0,0.00021917,2]
[355178361,1740953433109,-500.0,0.00021917,2]
[355178362,1740953433117,-500.0,0.00021917,2]
[355178363,1740953433126,-500.0,0.00021917,2]
[355178364,1740953433134,-500.0,0.00021917,2]
[355178365,1740953433141,-164.19,0.00022,7]
[355178366,1740953433149,-199.0,0.00022,2]
[355178367,1740953433157,-150.0,0.00022,2]
[355178368,1740953433164,-181.0,0.00022,2]
[355178369,1740953433172,-512.68705565,0.00022191,14]
[355178370,1740953433180,-500.0,0.00022191,2]
[355178371,1740953433188,-500.0,0.00022191,2]
[355178372,1740953433196,-500.0,0.00022191,2]
[355178373,1740953433204,-500.0,0.00022191,2]
[355178374,1740953433212,-404.54,0.00022191,2]
[355178375,1740953433221,-548.54290801,0.00022191,2]
[355178376,1740953433231,-500.0,0.00022191,2]
[355178377,1740953433242,-206.65,0.00022191,2]
[355178378,1740953433249,-500.0,0.00022191,2]
[355178379,1740953433257,-500.0,0.00022191,2]
[355178380,1740953433266,-464.69777547,0.00022191,2]
[355178381,1740953433276,-199.0,0.00022192,2]
[355178382,1740953433285,-420.0,0.00022448,2]
[355178383,1740953433294,-249.99,0.00022465,2]
[355178384,1740953433304,-500.0,0.00022465,2]
[355178385,1740953433314,-500.0,0.00022465,2]
[355178386,1740953433321,-500.0,0.00022465,2]
[355178387,1740953433328,-500.0,0.00022465,2]
[355178388,1740953433336,-500.0,0.00022465,2]
[355178389,1740953433344,-500.0,0.00022465,2]
[355178390,1740953433351,-615.63920859,0.00022739,2]
[355178391,1740953433358,-500.0,0.00022739,2]
[355178392,1740953433366,-500.0,0.00022739,2]
[355178393,1740953433374,-500.0,0.00022739,2]
[355178394,1740953433382,-500.0,0.00022739,2]
[355178395,1740953433391,-500.0,0.00022739,2]
[355178396,1740953433400,-540.67312573,0.00023013,2]
[355178397,1740953433408,-500.0,0.00023013,2]
[355178398,1740953433419,-373.21,0.00023013,2]
[355178399,1740953433428,-161.29,0.00023013,2]
[355178400,1740953433439,-500.0,0.00023013,2]
[355178401,1740953433448,-199.0,0.00023014,2]
[355178402,1740953433458,-181.0,0.00023014,2]
[355178403,1740953433468,-500.0,0.00023287,2]
[355178404,1740953433478,-500.0,0.00023287,2]
[355178405,1740953433488,-160.0,0.00023296,2]
[355178406,1740953433498,-19629.85965445,0.00023296,2]
[355178407,1740953433508,-160.0,0.00023296,2]
[355178408,1740953433518,-500.0,0.00023561,2]
[355178409,1740953433530,-500.0,0.00023561,2]
[355178410,1740953433540,-500.0,0.00023835,2]
[355178411,1740953433550,-500.0,0.00023835,2]
[355178412,1740953433561,-500.0,0.00024109,2]
[355178413,1740953433571,-500.0,0.00024109,2]
[355178414,1740953433581,-201.0,0.00024164,2]
[355178415,1740953433591,-500.0,0.00024383,2]
[355178416,1740953433601,-500.0,0.00024383,2]
[355178417,1740953433611,-431.0,0.00024428,2]
[355178418,1740953433621,-2500.0,0.000246,2]
[355178419,1740953433631,-200.0,0.0002464,14]
[355178420,1740953433640,-500.0,0.00024657,2]
[355178421,1740953433650,-500.0,0.00024657,2]
[355178422,1740953433660,-500.0,0.00024658,2]
[355178423,1740953433671,-500.0,0.00024658,2]
[355178424,1740953433681,-625.55326289,0.00024658,2]
[355178425,1740953433691,-936.48,0.000247,2]
[355178426,1740953433701,-153.033616,0.00024726,3]
[355178427,1740953433712,-429.653,0.000248,8]
[355178428,1740953433722,-2500.0,0.000249,2]
[355178429,1740953433732,-557.0,0.000249,11]
[355178430,1740953433742,-7642.33111332,0.000249,2]
[355178431,1740953433765,-151.0,0.0002493,2]
[355178432,1740953433775,-500.0,0.00024931,2]
[355178433,1740953433786,-500.0,0.00024931,2]
[355178434,1740953433796,-500.0,0.00024973,2]
[355178435,1740953433807,-500.0,0.00024973,2]
[355178436,1740953433817,-500.0,0.00024973,2]
[355178437,1740953433828,-500.0,0.00024973,2]
[355178438,1740953434052,-500.0,0.00024973,2]
[355178439,1740953434064,-504.4974225,0.00024973,2]
[355178440,1740953434075,-500.0,0.00024973,2]
[355178441,1740953434087,-160.0,0.00024999,2]
[355178442,1740953434098,-160.0,0.00025,3]
[355178443,1740953434109,-16658.75649382,0.00025,3]
[355178462,1740953440754,-182.0,0.00022,2]
[355178463,1740953440765,-218.52430274,0.00024998,2]
[355178464,1740953440775,-2971.10316063,0.00025,3]
[355178465,1740953440787,-160.0,0.00025,3]
[355178466,1740953440797,-8751.11551065,0.00025,3]
[355178467,1740953440807,-8352.1698168,0.00025,3]
[355178468,1740953440819,-17619.0,0.00025,3]
[355178564,1740954631941,-500.0,0.00019021,2]
[355178565,1740954631952,-500.0,0.00020646,2]
[355178566,1740954631962,-500.0,0.00020646,2]
[355178567,1740954631972,-535.38901623,0.00020646,2]
[355178568,1740954631982,-500.0,0.00020646,2]
[355178569,1740954631992,-500.0,0.00020646,2]
[355178570,1740954632001,-205.4257701,0.00020646,2]
[355178571,1740954632015,-294.5742299,0.00020646,2]
[355178572,1740954632024,-197.01478922,0.00020646,2]
[355178573,1740954632035,-300.0,0.00020646,2]
[355178574,1740954632044,-500.0,0.00020646,2]
[355178575,1740954632054,-500.0,0.00020646,2]
[355178576,1740954632064,-500.0,0.00020646,2]
[355178577,1740954632073,-3706.9330589,0.00020647,2]
[355178637,1740954645938,-3352.5428,0.00020647,2]
[355178667,1740955250971,168.6,0.00013699,2]
[355178668,1740955251266,168.6,0.00013699,2]
[355178669,1740955251560,168.6,0.00013699,2]
[355178670,1740955251913,168.6,0.00013699,2]
[355178671,1740955252791,168.6,0.00013699,2]
[355178672,1740955253139,168.656918,0.00013699,2]
[355178725,1740955832280,-1843.69923531,0.000189,2]
[355178726,1740955832291,-200.0,0.00020248,2]
[355178727,1740955832301,-170.59877958,0.00020248,2]
[355178728,1740955832315,-300.0,0.00020248,2]
[355178729,1740955832326,-18844.05191475,0.00020249,2]
[355178751,1740955838024,-3453.46879957,0.00020249,2]
[355178807,1740955878792,1000.0,0.00016021,2]
[355178812,1740956435424,10000.0,0.0001602,2]
[355178907,1740957032669,-3099.90552991,0.000189,10]
[355178909,1740957032679,-1229.13282354,0.000189,2]
[355178911,1740957032690,-351.0,0.0002,2]
[355178913,1740957032699,-1004.71292412,0.0002,3]
[355178915,1740957032709,-300.0,0.00020376,2]
[355178917,1740957032719,-24900.0,0.00020377,2]
[355178919,1740957032728,-200.0,0.00021337,2]
[355178921,1740957032738,-220.0,0.00021337,2]
[355178923,1740957032747,-242.0,0.00021337,2]
[355178925,1740957032757,-266.2,0.00021337,2]
[355178927,1740957032767,-292.82,0.00021337,2]
[355178929,1740957032778,-322.102,0.00021337,2]
[355178931,1740957032788,-354.3122,0.00021337,2]
[355178933,1740957032798,-389.74342,0.00021337,2]
[355178935,1740957032807,-400.0,0.00021337,2]
[355178937,1740957032817,-428.717762,0.00021337,2]
[355178939,1740957032827,-347.95499869,0.00021349,2]
[355178941,1740957032837,-585.51097426,0.00021349,2]
[355178943,1740957032847,-160.0,0.00021349,2]
[355178945,1740957032857,-222000.0,0.0002135,2]
[355178947,1740957032867,-500.0,0.00021373,2]
[355178949,1740957032876,-500.0,0.00021373,2]
[355178951,1740957032886,-500.0,0.00021373,2]
[355178953,1740957032896,-501.94280497,0.00021373,2]
[355178955,1740957032906,-500.0,0.00021373,2]
[355178957,1740957032915,-500.0,0.00021373,2]
[355178959,1740957032925,-500.0,0.00021373,2]
[355178961,1740957032934,-500.0,0.00021373,2]
[355178963,1740957032944,-974.52369881,0.00021449,2]
[355178965,1740957032953,-969.35024536,0.00021817,2]
[355178967,1740957032963,-500.0,0.000219,2]
[355178969,1740957032972,-500.0,0.000219,2]
[355178971,1740957032982,-500.0,0.000219,2]
[355178973,1740957032992,-500.0,0.000219,2]
[355178975,1740957033004,-501.46276249,0.000219,2]
[355178976,1740957033014,-500.0,0.000219,2]
[355178979,1740957033024,-500.0,0.000219,2]
[355178981,1740957033035,-3494.00009163,0.000219,3]
[355178983,1740957033046,-160.0,0.00021916,2]
[355178984,1740957033056,-500.0,0.00021917,2]
[355178986,1740957033067,-500.0,0.00021917,2]
[355178988,1740957033077,-500.0,0.00021917,2]
[355178990,1740957033087,-500.0,0.00021917,2]
[355178992,1740957033098,-500.0,0.00021917,2]
[355178994,1740957033107,-283.84736139,0.00021917,2]
[355178996,1740957033118,-500.0,0.00021917,2]
[355178998,1740957033127,-418.735,0.00021917,2]
[355179001,1740957033138,-500.0,0.00021917,2]
[355179003,1740957033149,-500.0,0.00021917,2]
[355179005,1740957033159,-500.0,0.00021917,2]
[355179006,1740957033169,-500.0,0.00021917,2]
[355179007,1740957033179,-500.0,0.00021917,2]
[355179009,1740957033190,-500.0,0.00021917,2]
[355179011,1740957033202,-500.0,0.00021917,2]
[355179013,1740957033212,-500.0,0.00021917,2]
[355179015,1740957033226,-500.0,0.00021917,2]
[355179017,1740957033236,-584.7372218,0.00021917,2]
[355179019,1740957033247,-225.28509673,0.00021917,2]
[355179021,1740957033258,-500.0,0.00021917,2]
[355179023,1740957033268,-500.0,0.00021917,2]
[355179025,1740957033278,-500.0,0.00021917,2]
[355179027,1740957033288,-500.0,0.00021917,2]
[355179029,1740957033298,-500.0,0.00021917,2]
[355179031,1740957033308,-500.46593654,0.00021917,2]
[355179033,1740957033318,-503.7359123,0.00021917,2]
[355179035,1740957033328,-500.0,0.00021917,2]
[355179037,1740957033339,-500.0,0.00021917,2]
[355179039,1740957033348,-500.0,0.00021917,2]
[355179041,1740957033359,-504.39967408,0.00021917,2]
[355179043,1740957033368,-500.0,0.00021917,2]
[355179045,1740957033379,-500.0,0.00021917,2]
[355179047,1740957033389,-500.0,0.00021917,2]
[355179049,1740957033401,-500.0,0.00021917,2]
[355179051,1740957033414,-500.0,0.00021917,2]
[355179053,1740957033424,-500.0,0.00021917,2]
[355179055,1740957033434,-500.0,0.00021917,2]
[355179057,1740957033446,-500.0,0.00021917,2]
[355179058,1740957033456,-500.0,0.00021917,2]
[355179060,1740957033466,-613.79440752,0.00021917,2]
[355179062,1740957033477,-500.0,0.00021917,2]
[355179064,1740957033487,-500.0,0.00021917,2]
[355179066,1740957033497,-500.0,0.00021917,2]
[355179068,1740957033510,-500.0,0.00021917,2]
[355179070,1740957033520,-500.0,0.00021917,2]
[355179072,1740957033530,-500.0,0.00021917,2]
[355179074,1740957033541,-500.0,0.00021917,2]
[355179076,1740957033552,-500.0,0.00021917,2]
[355179078,1740957033562,-500.0,0.00021917,2]
[355179080,1740957033573,-259.49,0.00021917,2]
[355179082,1740957033583,-500.0,0.00021917,2]
[355179084,1740957033594,-500.0,0.00021917,2]
[355179085,1740957033604,-500.0,0.00021917,2]
[355179086,1740957033614,-490.0,0.00021917,2]
[355179087,1740957033624,-500.0,0.00021917,2]
[355179088,1740957033634,-500.0,0.00021917,2]
[355179089,1740957033644,-500.0,0.00021917,2]
[355179090,1740957033655,-500.0,0.00021917,2]
[355179091,1740957033666,-500.0,0.00021917,2]
[355179092,1740957033676,-500.0,0.00021917,2]
[355179093,1740957033686,-500.0,0.00021917,2]
[355179094,1740957033696,-500.0,0.00021917,2]
[355179095,1740957033706,-500.0,0.00021917,2]
[355179096,1740957033717,-500.0,0.00021917,2]
[355179097,1740957033727,-506.82639246,0.00021917,2]
[355179098,1740957033738,-500.0,0.00021917,2]
[355179099,1740957033748,-500.0,0.00021917,2]
[355179100,1740957033760,-500.0,0.00021917,2]
[355179101,1740957033771,-500.0,0.00021917,2]
[355179102,1740957033782,-500.0,0.00021917,2]
[355179103,1740957033792,-500.0,0.00021917,2]
[355179104,1740957033802,-500.0,0.00021917,2]
[355179105,1740957033812,-500.0,0.00021917,2]
[355179106,1740957033822,-500.0,0.00021917,2]
[355179107,1740957033832,-500.0,0.00021917,2]
[355179108,1740957033841,-500.0,0.00021917,2]
[355179109,1740957033851,-500.0,0.00021917,2]
[355179110,1740957033862,-227.07979878,0.00021917,2]
[355179111,1740957033871,-500.0,0.00021917,2]
[355179112,1740957033881,-500.0,0.00021917,2]
[355179113,1740957033892,-295.78506735,0.00021917,2]
[355179114,1740957033902,-500.0,0.00021917,2]